bitfinex/quotes_SOLUSD_20250307
["timestamp","ask_amount","ask_price","bid_price","bid_amount"]
[1741383119438,2.0,144.45,144.41,47.33414341]
[1741383119749,2.03,144.47,144.44,47.33414341]
[1741383119944,0.03,144.47,144.44,47.33414341]
[1741383120345,0.03,144.47,144.45,47.33414341]
[1741383120545,0.03,144.47,144.46,47.33414341]
[1741383121141,0.03,144.47,144.46,54.25644341]
[1741383122267,0.03,144.47,144.46,47.33414341]
[1741383122762,0.03,144.47,144.43,47.33414341]
[1741383122961,2.0,144.45,144.38,47.33414341]
[1741383123162,2.0,144.44,144.37,47.33414341]
[1741383123365,2.0,144.42,144.35,47.33414341]
[1741383123662,2.0,144.42,144.37,47.33414341]
[1741383123962,2.0,144.42,144.36,47.33414341]
[1741383124669,3.3849,144.42,144.37,0.033]
[1741383124842,3.3849,144.42,144.37,47.36714341]
[1741383125262,18.64964886,144.41,144.37,0.033]
[1741383125469,2.0,144.38,144.37,0.033]
[1741383125650,20.64964886,144.38,144.37,0.033]
[1741383125969,2.0,144.4,144.37,0.033]
[1741383126158,2.0,144.38,144.37,0.033]
[1741383126357,2.0,144.35,144.28,47.33414341]
[1741383126740,1.3856,144.34,144.28,47.33414341]
[1741383127070,2.0,144.32,144.26,47.33414341]
[1741383127368,2.0,144.3,144.25,0.033]
[1741383127846,2.0,144.32,144.27,47.33414341]
[1741383128045,22.03514886,144.35,144.28,47.33414341]
[1741383128246,2.0,144.34,144.29,47.33414341]
[1741383128764,2.0,144.31,144.25,0.033]
[1741383128947,2.0,144.29,144.25,47.36714341]
[1741383129151,2.0,144.27,144.25,0.033]
[1741383129340,151.3855,144.35,144.25,0.033]
[1741383129341,2.0,144.26,144.25,0.033]
[1741383129546,20.64964886,144.26,144.25,0.033]
[1741383130554,2.0,144.23,144.22,0.033]
[1741383130766,32.43624886,144.23,144.22,0.033]
[1741383131067,12.4,144.23,144.22,0.033]
[1741383131273,10.4,144.23,144.22,0.033]
[1741383131570,20.64964886,144.25,144.22,0.033]
[1741383131748,2.0,144.23,144.22,0.033]
[1741383132069,2.0,144.26,144.22,0.033]
[1741383132255,2.0,144.23,144.22,0.033]
[1741383132456,20.64964886,144.23,144.22,0.033]
[1741383132669,20.64964886,144.23,144.12,47.33414341]
[1741383132850,2.0,144.16,144.11,47.36714341]
[1741383133855,12.42,144.22,144.15,47.33414341]
[1741383134055,2.0,144.25,144.2,47.33414341]
[1741383134255,2.0,144.22,144.13,47.33414341]
[1741383134450,2.0,144.25,144.2,47.33414341]
[1741383134673,2.0,144.23,144.2,47.33414341]
[1741383134876,10.4,144.26,144.2,47.33414341]
[1741383135065,2.0,144.31,144.25,47.33414341]
[1741383135250,10.42,144.33,144.28,47.33414341]
[1741383135450,10.42,144.33,144.22,18.64964886]
[1741383135773,10.42,144.33,144.28,47.33414341]
[1741383136080,2.0,144.32,144.23,1.03937879]
[1741383136283,18.64964886,144.31,144.24,47.33414341]
[1741383136587,2.0,144.28,144.25,47.33414341]
[1741383136884,2.0,144.27,144.23,47.33414341]
[1741383137055,2.0,144.27,144.19,4.7386]
[1741383137056,2.0,144.26,144.21,47.33414341]
[1741383137256,2.0,144.25,144.2,47.33414341]
[1741383137491,2.0,144.3,144.24,47.33414341]
[1741383137664,10.42,144.33,144.26,47.33414341]
[1741383137665,2.0,144.31,144.26,47.33414341]
[1741383137858,20.64964886,144.32,144.26,47.33414341]
[1741383138361,2.0,144.28,144.23,47.33414341]
[1741383139187,2.0,144.32,144.27,47.33414341]
[1741383139392,20.64964886,144.34,144.28,47.33414341]
[1741383139578,20.64964886,144.34,144.3,47.33414341]
[1741383139579,2.0,144.34,144.3,47.33414341]
[1741383139758,150.0,144.35,144.3,47.33414341]
[1741383139961,2.0,144.39,144.34,47.33414341]
[1741383140163,2.0,144.4,144.35,47.33414341]
[1741383140356,20.64964886,144.4,144.35,47.33414341]
[1741383140795,2.0,144.4,144.35,47.33414341]
[1741383141977,2.0,144.37,144.27,369.20094341]
[1741383142168,2.0,144.35,144.29,47.33414341]
[1741383142359,2.0,144.36,144.3,47.33414341]
[1741383142560,2.0,144.39,144.34,47.33414341]
[1741383142867,2.0,144.4,144.34,47.33414341]
[1741383143103,2.0,144.42,144.38,47.33414341]
[1741383143276,2.0,144.43,144.38,47.33414341]
[1741383143569,2.0,144.43,144.37,47.33414341]
[1741383143570,2.0,144.4,144.37,47.33414341]
[1741383143770,2.0,144.4,144.35,47.33414341]
[1741383143982,1.3847,144.43,144.33,47.33414341]
[1741383143983,2.0,144.39,144.33,47.33414341]
[1741383144193,2.0,144.38,144.27,57.20094341]
[1741383144363,2.0,144.35,144.29,47.33414341]
[1741383145088,3.3855,144.35,144.29,47.33414341]
[1741383145989,2.0,144.35,144.3,47.33414341]
[1741383146194,2.0,144.35,144.31,47.33414341]
[1741383146362,2.0,144.35,144.25,5.56924888]
[1741383146571,2.0,144.33,144.27,47.33414341]
[1741383146865,6.93509141,144.34,144.21,47.33414341]
[1741383146866,2.0,144.27,144.21,47.33414341]
[1741383147181,3.3863,144.26,144.21,47.33414341]
[1741383147384,2.0,144.28,144.22,47.33414341]
[1741383147692,2.0,144.27,144.24,47.33414341]
[1741383147866,2.0,144.28,144.23,47.33414341]
[1741383148068,2.0,144.28,144.22,0.033]
[1741383148069,3.3862,144.28,144.22,47.36714341]
[1741383149674,3.3862,144.28,144.23,47.33414341]
[1741383150303,2.0,144.26,144.22,47.36714341]
[1741383150487,6.93145239,144.27,144.22,47.36714341]
[1741383151493,6.93145239,144.27,144.26,47.33414341]
[1741383152403,3.3859,144.31,144.26,47.33414341]
[1741383152588,3.3859,144.31,144.27,47.33414341]
[1741383152786,2.0,144.34,144.28,47.33414341]
[1741383152999,0.03,144.35,144.31,47.33414341]
[1741383153304,0.03,144.35,144.32,47.33414341]
[1741383153498,0.03,144.35,144.33,47.33414341]
[1741383153872,2.0,144.34,144.32,47.33414341]
[1741383154186,2.0,144.32,144.2,47.33414341]
[1741383154386,2.0,144.25,144.2,47.33414341]
[1741383154704,2.0,144.27,144.22,47.36714341]
[1741383154910,18.64964886,144.28,144.23,47.33414341]
[1741383155199,2.0,144.23,144.22,0.033]
[1741383155920,2.0,144.24,144.22,0.033]
[1741383156580,12.38,144.29,144.23,47.33414341]
[1741383156781,8.3351792,144.27,144.24,47.33414341]
[1741383156984,2.0,144.25,144.24,47.33414341]
[1741383157505,8.3351792,144.27,144.24,47.33414341]
[1741383157715,2.0,144.27,144.25,47.33414341]
[1741383157877,2.0,144.27,144.24,47.33414341]
[1741383158077,2.0,144.32,144.26,47.33414341]
[1741383158281,2.0,144.32,144.22,8.0063533]
[1741383158282,10.3351792,144.33,144.28,47.33414341]
[1741383158585,8.3351792,144.33,144.29,47.33414341]
[1741383158787,8.3351792,144.33,144.3,47.33414341]
[1741383158988,8.3351792,144.33,144.29,47.33414341]
[1741383159185,6.74509444,144.33,144.29,47.33414341]
[1741383159402,6.74509444,144.33,144.3,47.33414341]
[1741383159711,6.74509444,144.33,144.32,47.33414341]
[1741383160603,6.74509444,144.33,144.3,47.33414341]
[1741383160788,6.74509444,144.33,144.31,47.33414341]
[1741383161313,6.74509444,144.33,144.3,47.33414341]
[1741383161489,2.0,144.34,144.31,47.33414341]
[1741383162087,2.0,144.34,144.25,11.6048]
[1741383162088,2.0,144.34,144.29,47.33414341]
[1741383162305,2.0,144.33,144.29,47.33414341]
[1741383162810,1.4155,144.35,144.25,5.71213734]
[1741383162811,2.0,144.34,144.31,47.33414341]
[1741383162989,2.0,144.33,144.31,47.33414341]
[1741383163181,2.0,144.32,144.29,47.33414341]
[1741383163388,2.0,144.32,144.27,47.33414341]
[1741383163713,2.0,144.32,144.28,47.33414341]
[1741383164001,2.0,144.32,144.29,47.33414341]
[1741383164209,2.0,144.32,144.28,47.33414341]
[1741383164715,3.3857,144.33,144.29,47.33414341]
[1741383165009,2.0,144.32,144.29,47.33414341]
[1741383165212,2.0,144.28,144.25,47.36714341]
[1741383165501,2.0,144.27,144.25,0.033]
[1741383166414,2.0,144.27,144.25,47.36714341]
[1741383166707,2.0,144.28,144.25,47.36714341]
[1741383166878,2.0,144.28,144.25,0.033]
[1741383167081,2.0,144.27,144.25,47.36714341]
[1741383167406,2.0,144.27,144.25,0.033]
[1741383167708,3.3863,144.26,144.25,0.033]
[1741383168203,18.64964886,144.29,144.25,0.033]
[1741383168204,1.3861,144.28,144.25,0.033]
[1741383168505,2.0,144.29,144.25,47.36714341]
[1741383168681,2.0,144.28,144.25,47.36714341]
[1741383168876,2.0,144.29,144.25,47.36714341]
[1741383169283,2.0,144.3,144.25,47.36714341]
[1741383169481,2.0,144.29,144.25,47.36714341]
[1741383169682,2.0,144.3,144.26,47.33414341]
[1741383169898,2.0,144.31,144.25,47.36714341]
[1741383170090,2.0,144.27,144.25,0.033]
[1741383170401,2.0,144.28,144.25,0.033]
[1741383170706,2.0,144.3,144.26,47.33414341]
[1741383170886,2.0,144.33,144.28,47.33414341]
[1741383171712,2.0,144.31,144.29,47.33414341]
[1741383171890,2.0,144.33,144.29,47.33414341]
[1741383172089,2.0,144.33,144.25,1.07233446]
[1741383172090,2.0,144.36,144.31,47.33414341]
[1741383172298,2.0,144.38,144.34,47.33414341]
[1741383172502,2.0,144.4,144.34,47.33414341]
[1741383172684,2.0,144.36,144.34,47.33414341]
[1741383172895,2.03,144.35,144.32,47.33414341]
[1741383174791,2.03,144.35,144.31,47.33414341]
[1741383175212,2.0,144.33,144.29,47.33414341]
[1741383175396,3.4155,144.35,144.3,47.33414341]
[1741383175603,2.0,144.33,144.3,47.33414341]
[1741383175804,0.03,144.35,144.32,47.33414341]
[1741383176114,0.03,144.35,144.33,47.33414341]
[1741383176115,2.03,144.35,144.33,47.33414341]
[1741383176302,2.03,144.35,144.34,47.33414341]
[1741383176503,0.03,144.35,144.34,47.33414341]
[1741383178200,0.03,144.35,144.34,101.59628682]
[1741383178516,0.03,144.43,144.35,18.64964886]
[1741383178727,0.03,144.43,144.42,47.33414341]
[1741383179017,2.03,144.43,144.37,9.4176]
[1741383179222,2.03,144.43,144.41,47.33414341]
[1741383179398,2.03,144.43,144.42,47.33414341]
[1741383180120,0.03,144.43,144.42,54.25834341]
[1741383180317,0.03,144.43,144.42,47.33414341]
[1741383181219,0.03,144.43,144.42,55.29660565]
[1741383181402,0.03,144.43,144.42,73.94625451]
[1741383182015,0.03,144.43,144.42,48.37240565]
[1741383182195,0.03,144.43,144.42,55.29660565]
[1741383183212,0.03,144.43,144.42,1.03826224]
[1741383183422,0.03,144.43,144.42,47.33414341]
[1741383183717,0.03,144.47,144.43,18.64964886]
[1741383183928,0.03,144.47,144.46,94.66828682]
[1741383184129,0.03,144.47,144.46,47.33414341]
[1741383185526,2.0,144.46,144.44,47.33414341]
[1741383185718,2.0,144.46,144.43,47.33414341]
[1741383186219,2.0,144.45,144.43,47.33414341]
[1741383186407,2.03,144.47,144.44,47.33414341]
[1741383186606,2.0,144.46,144.4,6.9252]
[1741383186907,2.0,144.46,144.44,47.33414341]
[1741383187104,2.03,144.47,144.44,47.33414341]
[1741383187307,0.03,144.47,144.46,47.33414341]
[1741383187605,2.0,144.42,144.37,9.4176]
[1741383187791,2.0,144.38,144.35,47.33414341]
[1741383187990,2.0,144.35,144.29,6.93]
[1741383188192,2.0,144.35,144.31,47.33414341]
[1741383188418,2.0,144.35,144.34,47.33414341]
[1741383188826,2.0,144.39,144.34,47.33414341]
[1741383188998,2.0,144.36,144.35,47.33414341]
[1741383189193,2.0,144.36,144.32,47.33414341]
[1741383189496,2.0,144.35,144.32,47.33414341]
[1741383189898,2.0,144.34,144.32,47.33414341]
[1741383191310,2.0,144.37,144.33,47.33414341]
[1741383191521,2.0,144.38,144.34,47.33414341]
[1741383191914,10.32,144.4,144.37,47.33414341]
[1741383192104,2.0,144.42,144.39,47.33414341]
[1741383192422,2.0,144.42,144.4,47.33414341]
[1741383192631,2.03,144.47,144.36,1.03845295]
[1741383192799,2.03,144.47,144.41,47.33414341]
[1741383193155,2.03,144.47,144.43,47.33414341]
[1741383193330,2.0,144.44,144.43,47.33414341]
[1741383193633,0.03,144.47,144.44,6.9232]
[1741383193840,0.03,144.47,144.46,47.33414341]
[1741383194114,0.03,144.47,144.46,48.37199456]
[1741383195096,0.03,144.47,144.46,114.35578683]
[1741383195650,0.03,144.47,144.46,55.29429456]
[1741383196606,0.03,144.47,144.46,54.25644341]
[1741383196806,0.03,144.47,144.46,47.33414341]
[1741383197834,0.03,144.47,144.46,54.25644341]
[1741383198552,0.03,144.47,144.46,102.62836391]
[1741383198728,0.03,144.47,144.46,55.2942205]
[1741383198921,0.0001,144.47,144.46,121.27801277]
[1741383199541,0.0001,144.47,144.46,55.2942205]
[1741383199714,0.0001,144.47,144.46,73.94386936]
[1741383199916,0.03,144.53,144.47,28.00714886]
[1741383200149,0.03,144.53,144.52,47.33414341]
[1741383200629,0.03,144.53,144.51,47.33414341]
[1741383201018,0.03,144.53,144.47,9.3575]
[1741383201019,2.03,144.53,144.5,47.33414341]
[1741383201221,2.0,144.51,144.48,47.33414341]
[1741383201628,2.0,144.47,144.45,47.33414341]
[1741383201953,2.0,144.46,144.43,47.33414341]
[1741383202821,2.0,144.51,144.45,47.33414341]
[1741383203022,2.03,144.53,144.48,47.33414341]
[1741383203446,2.0,144.49,144.47,47.33414341]
[1741383203758,2.0,144.51,144.46,47.33414341]
[1741383204123,2.0,144.49,144.46,47.33414341]
[1741383205647,2.0,144.48,144.46,47.33414341]
[1741383205946,2.0,144.5,144.46,47.33414341]
[1741383206133,2.0,144.5,144.47,47.33414341]
[1741383206335,3.384,144.51,144.47,47.33414341]
[1741383206632,2.0,144.49,144.47,47.33414341]
[1741383207116,2.0,144.49,144.41,83.29529227]
[1741383207117,2.0,144.48,144.44,47.33414341]
[1741383207518,2.0,144.47,144.44,47.33414341]
[1741383207734,2.0,144.47,144.45,47.33414341]
[1741383207940,2.0,144.48,144.46,47.33414341]
[1741383208563,0.03,144.49,144.47,47.33414341]
[1741383209052,0.03,144.49,144.48,94.66828682]
[1741383209257,0.03,144.49,144.48,113.31793568]
[1741383209558,0.03,144.49,144.48,47.33414341]
[1741383210264,2.0,144.47,144.43,0.033]
[1741383210429,2.0,144.45,144.43,0.033]
[1741383210628,2.0,144.44,144.43,0.033]
[1741383210947,2.0,144.48,144.43,55.32908667]
[1741383211256,2.0,144.48,144.47,47.33414341]
[1741383212148,0.03,144.49,144.47,47.33414341]
[1741383212149,0.03,144.49,144.47,54.25584341]
[1741383212326,0.03,144.49,144.48,114.3556908]
[1741383212647,0.03,144.53,144.48,114.3556908]
[1741383212648,0.03,144.53,144.49,18.64964886]
[1741383212844,0.03,144.53,144.52,47.33414341]
[1741383213049,2.0,144.51,144.49,47.33414341]
[1741383213753,2.0,144.51,144.5,47.33414341]
[1741383214066,0.03,144.53,144.5,47.33414341]
[1741383214357,1.09,144.58,144.52,47.33414341]
[1741383214553,1.09,144.58,144.54,47.33414341]
[1741383214766,2.4733,144.58,144.54,47.33414341]
[1741383215133,1.09,144.57,144.53,47.33414341]
[1741383215348,1.09,144.55,144.53,47.33414341]
[1741383215567,1.3833,144.58,144.5,47.33414341]
[1741383215568,1.09,144.53,144.5,47.33414341]
[1741383215742,4.8415,144.58,144.47,7.95891322]
[1741383215743,1.09,144.55,144.51,47.33414341]
[1741383216069,1.09,144.55,144.53,47.33414341]
[1741383216243,1.09,144.55,144.51,47.33414341]
[1741383216448,1.09,144.52,144.5,47.33414341]
[1741383216763,1.09,144.51,144.49,47.33414341]
[1741383216943,1.09,144.53,144.5,47.33414341]
[1741383217143,1.09,144.51,144.5,47.33414341]
[1741383218366,1.09,144.52,144.5,54.25454341]
[1741383218541,1.09,144.57,144.51,47.33414341]
[1741383218746,1.09,144.55,144.54,47.33414341]
[1741383219038,1.09,144.58,144.54,47.33414341]
[1741383219251,1.09,144.57,144.56,47.33414341]
[1741383220157,1.09,144.56,144.52,47.33414341]
[1741383220471,1.09,144.53,144.5,47.33414341]
[1741383220671,1.09,144.53,144.52,47.33414341]
[1741383221439,1.09,144.53,144.5,47.33414341]
[1741383221640,1.09,144.53,144.51,47.33414341]
[1741383221861,1.09,144.53,144.52,47.33414341]
[1741383222059,1.09,144.6,144.54,18.64964886]
[1741383222243,0.03,144.62,144.58,47.33414341]
[1741383222450,0.03,144.62,144.61,47.33414341]
[1741383224065,0.03,144.62,144.61,54.24924341]
[1741383224361,0.03,144.62,144.61,101.58338682]
[1741383225367,0.03,144.62,144.61,121.26962791]
[1741383225754,0.03,144.62,144.61,55.28583564]
[1741383226156,0.03,144.62,144.61,102.61997905]
[1741383227250,0.03,144.62,144.61,47.33414341]
[1741383227566,0.03,144.62,144.61,54.24924341]
[1741383229044,0.03,144.62,144.61,47.33414341]
[1741383229967,0.03,144.62,144.61,101.58338682]
[1741383230765,0.03,144.62,144.61,102.61987379]
[1741383231443,0.03,144.62,144.61,101.58338682]
[1741383232173,0.03,144.62,144.61,121.26963703]
[1741383232880,0.03,144.68,144.62,18.64964886]
[1741383233049,0.03,144.68,144.67,47.33414341]
[1741383233562,0.03,144.68,144.67,54.24634341]
[1741383233873,0.03,144.68,144.67,55.28253009]
[1741383234042,0.03,144.68,144.67,121.26632236]
[1741383234672,0.03,144.68,144.67,47.33414341]
[1741383235069,0.03,144.68,144.66,47.33414341]
[1741383235456,1.09,144.67,144.66,47.33414341]
[1741383235659,1.09,144.67,144.65,47.33414341]
[1741383235872,1.09,144.66,144.64,47.33414341]
[1741383236075,1.09,144.63,144.58,1.06974367]
[1741383236277,0.03,144.68,144.6,47.33414341]
[1741383236278,1.09,144.61,144.6,47.33414341]
[1741383236484,1.09,144.6,144.58,0.033]
[1741383236892,1.09,144.62,144.59,47.33414341]
[1741383237099,1.09,144.62,144.61,47.33414341]
[1741383237585,2.4728,144.64,144.61,47.33414341]
[1741383237794,1.09,144.62,144.6,47.33414341]
[1741383238089,1.09,144.59,144.58,47.36714341]
[1741383238970,1.09,144.59,144.58,0.033]
[1741383240192,1.09,144.59,144.58,47.36714341]
[1741383240578,1.09,144.61,144.58,47.36714341]
[1741383240765,1.09,144.6,144.59,47.33414341]
[1741383240966,1.09,144.59,144.58,0.033]
[1741383241275,1.09,144.59,144.58,0.0001]
[1741383241473,19.73964886,144.59,144.58,0.0001]
[1741383241875,1.09,144.52,144.46,9.5493]
[1741383242081,1.09,144.51,144.5,47.33414341]
[1741383242275,2.4738,144.53,144.5,47.33414341]
[1741383242570,1.09,144.5,144.49,47.33414341]
[1741383243473,4.8432,144.53,144.43,3.4725064]
[1741383243474,1.09,144.48,144.43,3.4725064]
[1741383243675,1.09,144.48,144.44,47.33414341]
[1741383243875,1.09,144.46,144.44,47.33414341]
[1741383244095,2.4744,144.46,144.44,47.33414341]
[1741383244401,1.09,144.45,144.44,47.33414341]
[1741383244593,1.09,144.49,144.44,54.25724341]
[1741383244797,1.09,144.52,144.48,47.33414341]
[1741383245004,1.09,144.5,144.45,1.03781832]
[1741383245205,1.09,144.55,144.46,18.64964886]
[1741383245394,1.09,144.57,144.48,18.64964886]
[1741383245603,11.31,144.59,144.5,18.64964886]
[1741383245896,1.09,144.56,144.51,1.03722975]
[1741383246085,1.09,144.56,144.55,47.33414341]
[1741383246290,1.09,144.54,144.52,47.33414341]
[1741383246801,1.09,144.55,144.53,47.33414341]
[1741383246979,1.09,144.59,144.54,47.33414341]
[1741383247179,1.09,144.6,144.57,47.33414341]
[1741383247620,1.09,144.61,144.59,47.33414341]
[1741383247774,1.09,144.59,144.55,47.33414341]
[1741383247981,1.09,144.54,144.53,47.33414341]
[1741383248180,1.09,144.56,144.52,47.33414341]
[1741383248381,0.03,144.62,144.5,1.03755052]
[1741383248382,1.09,144.57,144.55,47.33414341]
[1741383248577,1.09,144.6,144.49,5.59258518]
[1741383248781,1.09,144.6,144.53,47.33414341]
[1741383248782,1.09,144.55,144.53,47.33414341]
[1741383249186,1.09,144.54,144.51,47.33414341]
[1741383249391,1.09,144.53,144.51,47.33414341]
[1741383249804,1.09,144.53,144.52,47.33414341]
[1741383250399,1.09,144.53,144.46,28.11784886]
[1741383250400,1.09,144.49,144.43,6.9566]
[1741383250699,1.09,144.46,144.44,47.33414341]
[1741383250882,4.8432,144.53,144.45,47.33414341]
[1741383250883,1.09,144.49,144.45,47.33414341]
[1741383251086,1.09,144.5,144.47,47.33414341]
[1741383251315,1.09,144.46,144.43,6.9567]
[1741383251515,1.09,144.46,144.45,47.33414341]
[1741383252013,1.09,144.45,144.44,47.33414341]
[1741383252709,1.09,144.5,144.44,55.2955053]
[1741383253003,1.09,144.53,144.49,47.33414341]
[1741383253222,1.09,144.54,144.52,47.33414341]
[1741383253581,1.09,144.56,144.53,47.33414341]
[1741383253781,1.09,144.56,144.55,47.33414341]
[1741383253993,1.09,144.57,144.55,47.33414341]
[1741383254281,1.09,144.56,144.55,47.33414341]
[1741383255109,1.09,144.56,144.54,47.33414341]
[1741383255307,1.09,144.53,144.48,47.33414341]
[1741383255517,1.09,144.52,144.51,47.33414341]
[1741383256011,1.09,144.56,144.51,47.33414341]
[1741383256214,1.09,144.52,144.51,47.33414341]
[1741383256405,1.09,144.51,144.5,47.33414341]
[1741383256808,1.09,144.56,144.5,47.33414341]
[1741383257016,1.09,144.54,144.53,47.33414341]
[1741383257218,1.09,144.51,144.5,47.33414341]
[1741383257535,1.09,144.5,144.48,47.33414341]
[1741383257822,1.09,144.5,144.49,47.33414341]
[1741383259022,1.09,144.49,144.47,47.33414341]
[1741383259226,1.09,144.47,144.46,47.33414341]
[1741383259416,1.09,144.46,144.44,47.33414341]
[1741383259610,1.09,144.46,144.45,47.33414341]
[1741383259922,1.09,144.46,144.43,0.033]
[1741383259923,1.09,144.46,144.44,47.33414341]
[1741383260507,1.09,144.44,144.43,0.033]
[1741383260697,2.4746,144.44,144.43,0.033]
[1741383261637,1.09,144.44,144.43,0.033]
[1741383261999,2.4746,144.44,144.43,0.033]
[1741383262219,2.4746,144.44,144.43,0.0001]
[1741383263206,12.1918,144.44,144.43,0.0001]
[1741383264217,1.09,144.44,144.43,0.0001]
[1741383264421,2.4746,144.44,144.43,0.0001]
[1741383264915,1.09,144.36,144.35,0.033]
[1741383266404,1.09,144.36,144.35,47.36714341]
[1741383266924,1.09,144.39,144.35,54.29474341]
[1741383267134,1.09,144.4,144.35,54.29474341]
[1741383267433,1.09,144.42,144.39,47.33414341]
[1741383267641,1.09,144.42,144.35,25.31826177]
[1741383267642,1.09,144.44,144.41,47.33414341]
[1741383267810,1.09,144.45,144.43,47.33414341]
[1741383268011,1.09,144.47,144.44,47.33414341]
[1741383268436,1.09,144.48,144.46,47.33414341]
[1741383268800,1.09,144.47,144.46,47.33414341]
[1741383269106,1.09,144.5,144.46,54.25644341]
[1741383269409,10.50217509,144.51,144.49,47.33414341]
[1741383269643,1.09,144.55,144.5,47.33414341]
[1741383269805,1.09,144.55,144.53,47.33414341]
[1741383270139,1.09,144.55,144.54,47.33414341]
[1741383270435,1.09,144.54,144.53,47.33414341]
[1741383270604,1.09,144.56,144.48,48.37172259]
[1741383270807,1.09,144.56,144.55,47.33414341]
[1741383271122,1.09,144.56,144.54,47.33414341]
[1741383271619,1.09,144.55,144.54,47.33414341]
[1741383272033,1.09,144.58,144.54,47.33414341]
[1741383272214,1.09,144.59,144.57,47.33414341]
[1741383272414,1.09,144.6,144.58,47.33414341]
[1741383272936,1.09,144.61,144.59,47.33414341]
[1741383273239,1.09,144.6,144.59,47.33414341]
[1741383273434,1.09,144.6,144.55,47.33414341]
[1741383273435,1.09,144.6,144.58,47.33414341]
[1741383273641,1.09,144.56,144.51,1.03714888]
[1741383273936,1.09,144.5,144.48,47.33414341]
[1741383274143,1.09,144.49,144.47,47.33414341]
[1741383274508,1.09,144.46,144.44,47.33414341]
[1741383274716,1.09,144.46,144.42,9.3644]
[1741383274717,1.09,144.45,144.43,47.33414341]
[1741383275616,1.09,144.46,144.44,47.33414341]
[1741383275846,1.09,144.48,144.45,47.33414341]
[1741383276048,1.09,144.48,144.47,47.33414341]
[1741383276211,1.09,144.47,144.46,47.33414341]
[1741383276918,1.09,144.48,144.46,47.33414341]
[1741383277243,1.09,144.48,144.47,47.33414341]
[1741383277443,1.09,144.5,144.47,47.33414341]
[1741383277631,1.09,144.48,144.47,47.33414341]
[1741383278044,1.09,144.47,144.45,47.33414341]
[1741383278618,1.09,144.47,144.46,47.33414341]
[1741383279030,1.09,144.51,144.46,47.33414341]
[1741383279229,2.4739,144.52,144.48,47.33414341]
[1741383279535,1.09,144.48,144.47,47.33414341]
[1741383280444,1.09,144.44,144.43,47.36714341]
[1741383280647,1.09,144.44,144.43,0.033]
[1741383280831,1.09,144.45,144.43,54.29074341]
[1741383281132,1.09,144.45,144.44,47.33414341]
[1741383281433,1.09,144.44,144.43,0.033]
[1741383281623,1.09,144.44,144.43,47.36714341]
[1741383281820,1.09,144.44,144.43,0.033]
[1741383284038,1.09,144.45,144.43,47.36714341]
[1741383284335,1.09,144.45,144.44,47.33414341]
[1741383284538,11.27,144.5,144.44,47.33414341]
[1741383284740,11.27,144.5,144.43,0.033]
[1741383284741,11.27,144.5,144.46,47.33414341]
[1741383285042,1.09,144.47,144.46,47.33414341]
[1741383285341,1.09,144.47,144.45,47.33414341]
[1741383285746,1.09,144.44,144.43,0.033]
[1741383286225,2.4746,144.44,144.43,0.033]
[1741383287930,1.09,144.45,144.43,47.36714341]
[1741383288257,1.09,144.44,144.43,54.29084341]
[1741383288441,1.09,144.46,144.43,54.29084341]
[1741383288643,1.09,144.46,144.45,47.33414341]
[1741383289463,1.09,144.47,144.45,47.33414341]
[1741383289769,1.09,144.47,144.46,47.33414341]
[1741383290056,1.09,144.47,144.45,47.33414341]
[1741383290259,1.09,144.46,144.45,47.33414341]